bitfinex/quotes_SOLUSD_20251126
["timestamp","ask_amount","ask_price","bid_price","bid_amount"]
[1764123057964,16.308864,140.14,140.11,3.86350702]
[1764123058165,17.008864,140.14,140.11,3.86350702]
[1764123058474,0.7,140.13,140.1,4.48350702]
[1764123059457,0.7,140.13,140.1,3.86350702]
[1764123060573,0.7,140.13,140.1,2.46816532]
[1764123061881,7.83626298,140.13,140.1,2.46816532]
[1764123062277,103.68,140.15,140.11,3.78]
[1764123062479,0.68,140.17,140.13,2.46816532]
[1764123062671,7.81432851,140.17,140.13,9.60439123]
[1764123062869,7.81432851,140.17,140.13,10.22439123]
[1764123063065,0.68,140.17,140.15,2.46816532]
[1764123063266,7.81329694,140.19,140.15,2.46816532]
[1764123063584,0.68,140.18,140.15,2.46816532]
[1764123063969,0.2,140.2,140.17,2.46816532]
[1764123064169,0.2,140.2,140.17,5.62816532]
[1764123064573,0.2,140.2,140.18,2.46816532]
[1764123065593,0.88,140.2,140.18,2.46816532]
[1764123066787,8.01271826,140.2,140.17,5.62816532]
[1764123066999,0.68,140.19,140.17,3.16]
[1764123067977,0.68,140.19,140.16,2.46816532]
[1764123068189,0.68,140.19,140.16,12.76284236]
[1764123068383,0.68,140.19,140.16,3.16]
[1764123069096,7.81320446,140.19,140.16,5.62816532]
[1764123070087,0.68,140.18,140.16,5.62816532]
[1764123070492,7.81320446,140.19,140.16,5.62816532]
[1764123070666,0.68,140.18,140.14,0.62]
[1764123070995,7.81385184,140.18,140.14,5.62816532]
[1764123071181,7.81385184,140.18,140.14,12.76387568]
[1764123071384,0.68,140.17,140.14,12.76387568]
[1764123071882,0.68,140.17,140.14,13.38387568]
[1764123073887,0.68,140.17,140.14,12.76387568]
[1764123074391,0.68,140.17,140.14,5.62816532]
[1764123074902,0.68,140.17,140.15,2.46816532]
[1764123075893,7.81422834,140.17,140.14,3.16]
[1764123076074,0.68,140.17,140.14,6.24816532]
[1764123076275,0.68,140.17,140.15,2.46816532]
[1764123077295,0.68,140.18,140.15,2.46816532]
[1764123077696,7.81374759,140.18,140.15,2.46816532]
[1764123077898,7.81374759,140.18,140.14,5.62816532]
[1764123078104,0.68,140.17,140.14,5.62816532]
[1764123078400,0.68,140.17,140.14,13.38388048]
[1764123079985,0.68,140.17,140.14,12.76388048]
[1764123081111,8.01288387,140.2,140.16,2.46816532]
[1764123081398,0.88,140.2,140.17,5.60816532]
[1764123081573,0.2,140.2,140.18,2.46816532]
[1764123081778,0.2,140.2,140.19,2.46816532]
[1764123081979,0.2,140.2,140.18,7.75334048]
[1764123082176,0.2,140.2,140.18,9.6015058]
[1764123085811,0.2,140.2,140.19,9.60134172]
[1764123087398,0.2,140.2,140.19,10.22134172]
[1764123088503,0.2,140.2,140.19,9.60134172]
[1764123089089,0.2,140.2,140.19,2.46816532]
[1764123089504,0.9,140.2,140.17,12.74226341]
[1764123089890,0.2,140.2,140.17,2.46816532]
[1764123090094,0.7,140.19,140.16,18.41266198]
[1764123090292,0.7,140.19,140.18,3.14]
[1764123091906,0.9,140.2,140.18,3.14]
[1764123092414,0.7,140.19,140.18,3.14]
[1764123092710,0.2,140.2,140.18,12.74181575]
[1764123092893,0.2,140.2,140.19,11.89811024]
[1764123093300,0.2,140.2,140.19,19.03128664]
[1764123102121,0.9,140.2,140.19,3.14]
[1764123102697,0.2,140.2,140.19,14.41811024]
[1764123102917,0.2,140.2,140.19,15.03811024]
[1764123104012,0.2,140.2,140.19,22.17128664]
[1764123105507,0.2,140.2,140.19,21.55128664]
[1764123106223,0.9,140.2,140.19,3.14]
[1764123111326,0.2,140.2,140.19,12.74134172]
[1764123112626,0.2,140.2,140.19,5.60816532]
[1764123112832,0.9,140.2,140.19,3.14]
[1764123116232,0.2,140.2,140.19,12.74134172]
[1764123116414,0.2,140.2,140.19,5.60816532]
[1764123116733,0.2,140.2,140.19,10.2731764]
[1764123117323,0.86,140.2,140.19,3.14]
[1764123117911,0.2,140.2,140.19,3.14]
[1764123118111,0.2,140.2,140.19,5.60816532]
[1764123118322,0.86,140.2,140.19,5.60816532]
[1764123120838,0.2,140.2,140.19,12.74134172]
[1764123121935,0.2,140.2,140.19,21.55128664]
[1764123122532,0.2,140.2,140.19,22.93396652]
[1764123122719,0.2,140.2,140.19,23.55396652]
[1764123122921,0.2,140.2,140.19,22.93396652]
[1764123123225,0.1,140.25,140.2,25.11880892]
[1764123123431,0.1,140.25,140.24,3.8508452]
[1764123123740,0.1,140.25,140.19,3.14]
[1764123123741,28.0401166,140.25,140.19,3.14]
[1764123124035,3.8508452,140.24,140.19,3.14]
[1764123124258,4.5008452,140.24,140.19,3.14]
[1764123124428,0.65,140.23,140.19,3.14]
[1764123125320,7.13165026,140.22,140.19,3.14]
[1764123125817,0.65,140.21,140.19,3.14]
[1764123126548,4.5008452,140.21,140.16,19.7950865]
[1764123126747,4.5008452,140.21,140.17,3.14]
[1764123126921,0.65,140.2,140.17,3.14]
[1764123127421,0.65,140.2,140.17,14.12484561]
[1764123128224,0.65,140.2,140.17,10.27400041]
[1764123128743,7.78269676,140.2,140.17,3.14]
[1764123129120,0.65,140.19,140.17,3.14]
[1764123131350,0.65,140.19,140.17,10.27406678]
[1764123131551,0.65,140.19,140.17,3.14]
[1764123140075,7.78319095,140.19,140.17,3.14]
[1764123140561,0.65,140.18,140.17,3.14]
[1764123143049,7.78368526,140.18,140.14,10.98644303]
[1764123143271,7.78368526,140.18,140.15,3.14]
[1764123143437,0.67,140.17,140.15,3.14]
[1764123144548,7.80431771,140.17,140.15,3.14]
[1764123144945,0.67,140.16,140.15,3.14]
[1764123146140,7.80470319,140.16,140.12,19.79735296]
[1764123146453,7.80470319,140.16,140.13,3.14]
[1764123146659,0.67,140.15,140.13,3.14]
[1764123147156,7.80528226,140.15,140.13,3.14]
[1764123147335,7.80528226,140.15,140.12,3.14]
[1764123147540,0.67,140.14,140.11,10.98791375]
[1764123147846,0.67,140.14,140.12,3.14]
[1764123151565,0.67,140.14,140.12,10.27670986]
[1764123151740,0.67,140.14,140.12,14.12755506]
[1764123152563,0.67,140.14,140.12,3.14]
[1764123162248,0.67,140.14,140.12,10.27667667]
[1764123162644,16.978864,140.16,140.12,14.74752187]
[1764123162847,16.978864,140.16,140.14,3.8508452]
[1764123163065,0.67,140.16,140.14,3.8508452]
[1764123163258,7.80431176,140.17,140.14,10.98653316]
[1764123163566,0.67,140.17,140.14,11.60653316]
[1764123163968,16.308864,140.18,140.16,3.8508452]
[1764123164152,0.67,140.19,140.17,3.8508452]
[1764123167162,0.67,140.19,140.17,6.9908452]
[1764123167763,0.67,140.19,140.17,3.14]
[1764123168675,0.77,140.25,140.19,8.80994492]
[1764123168970,0.1,140.25,140.24,3.8508452]
[1764123169173,0.1,140.25,140.2,3.14]
[1764123169174,0.1,140.25,140.23,3.14]
[1764123169358,0.77,140.25,140.23,3.14]
[1764123170063,0.77,140.25,140.22,14.12240986]
[1764123170257,0.77,140.25,140.22,6.9908452]
[1764123170658,0.77,140.25,140.22,3.14]
[1764123172653,0.77,140.25,140.18,0.67]
[1764123172654,3.8508452,140.23,140.18,0.67]
[1764123172874,6.9908452,140.24,140.19,3.8508452]
[1764123173076,0.67,140.23,140.19,3.8508452]
[1764123173465,0.67,140.23,140.18,4.5208452]
[1764123173670,4.5208452,140.23,140.18,0.67]
[1764123173873,7.8013112,140.23,140.19,0.66]
[1764123174173,0.7,140.22,140.19,4.5108452]
[1764123175682,11.6825132,140.22,140.17,11.6448564]
[1764123175980,0.7,140.21,140.18,4.5108452]
[1764123176180,7.83128405,140.23,140.19,3.8508452]
[1764123176362,7.13128405,140.23,140.19,4.5108452]
[1764123176568,0.7,140.22,140.19,4.5108452]
[1764123181281,0.7,140.22,140.19,11.64401734]
[1764123181482,0.7,140.22,140.19,11.69401734]
[1764123182388,0.7,140.22,140.19,7.84317214]
[1764123182595,0.7,140.22,140.19,11.69401734]
[1764123183093,24.95809613,140.24,140.2,0.71]
[1764123183265,0.72,140.23,140.2,4.5608452]
[1764123183896,0.72,140.23,140.2,0.71]
[1764123184495,24.16001144,140.23,140.18,7.13366862]
[1764123184693,3.18534473,140.22,140.17,3.14]
[1764123185176,0.72,140.21,140.18,0.71]
[1764123185493,0.72,140.21,140.17,5.60534473]
[1764123185688,0.72,140.21,140.17,6.31534473]
[1764123185894,0.72,140.21,140.17,13.44953276]
[1764123186110,0.72,140.21,140.18,0.71]
[1764123186876,7.85238931,140.21,140.18,0.71]
[1764123187174,7.85238931,140.21,140.17,6.31534473]
[1764123187395,0.72,140.2,140.17,6.31534473]
[1764123189497,0.72,140.2,140.17,13.44926059]
[1764123192412,0.72,140.2,140.15,26.64724498]
[1764123192413,2.46534473,140.19,140.14,2.46534473]
[1764123192589,2.46534473,140.19,140.14,5.60534473]
[1764123192910,0.72,140.18,140.14,3.17534473]
[1764123193110,0.72,140.18,140.14,0.71]
[1764123193410,0.72,140.18,140.14,3.17534473]
[1764123193591,7.85370755,140.18,140.14,10.31086102]
[1764123195013,0.72,140.17,140.14,10.31086102]
[1764123197199,7.1331764,140.19,140.15,0.71]
[1764123197407,0.72,140.18,140.15,0.71]
[1764123197710,0.72,140.18,140.15,3.17534473]
[1764123198296,7.85369491,140.18,140.15,2.46534473]
[1764123198504,7.85369491,140.18,140.15,0.71]
[1764123199129,7.85369491,140.18,140.15,3.17534473]
[1764123199130,0.72,140.18,140.15,3.17534473]
[1764123200099,7.85371896,140.18,140.15,3.17534473]
[1764123201804,0.72,140.17,140.15,2.46534473]
[1764123201997,0.72,140.17,140.14,10.31086102]
[1764123203227,0.72,140.17,140.14,3.17534473]
[1764123203606,0.72,140.17,140.14,10.31086095]
[1764123209840,7.85423299,140.17,140.13,12.7414065]
[1764123210129,7.85423299,140.17,140.14,3.13534473]
[1764123211023,7.85423299,140.17,140.14,10.27104913]
[1764123211330,0.68,140.17,140.15,0.67]
[1764123211512,0.68,140.17,140.15,3.13534473]
[1764123211718,24.12164088,140.2,140.16,5.60534473]
[1764123211914,16.308864,140.2,140.17,2.46534473]
[1764123212120,16.988864,140.2,140.17,3.13534473]
[1764123212321,16.308864,140.2,140.18,0.67]
[1764123212539,16.988864,140.2,140.17,3.13534473]
[1764123213046,0.68,140.2,140.18,0.67]
[1764123213220,7.81235186,140.21,140.18,0.67]
[1764123213733,0.68,140.2,140.17,9.5993982]
[1764123214034,0.68,140.2,140.17,10.2693982]
[1764123214737,0.68,140.2,140.17,7.80405347]
[1764123214932,0.68,140.2,140.17,10.2693982]
[1764123215132,0.68,140.2,140.17,6.27534473]
[1764123216039,0.68,140.2,140.17,13.40945534]
[1764123216612,0.68,140.21,140.18,0.67]
[1764123218350,7.81238128,140.21,140.17,13.40945534]
[1764123219315,0.68,140.2,140.17,13.40945534]
[1764123219736,0.68,140.2,140.17,10.26945534]
[1764123219939,0.68,140.2,140.17,13.40945534]
[1764123220126,0.68,140.2,140.17,10.26945534]
[1764123220327,0.68,140.2,140.17,13.40945534]
[1764123220721,0.68,140.2,140.17,10.94411061]
[1764123220934,7.81269251,140.2,140.17,10.94411061]
[1764123221318,3.14534473,140.19,140.13,7.80575064]
[1764123221516,3.14534473,140.19,140.14,3.14]
[1764123221719,0.68,140.18,140.14,3.14]
[1764123221928,7.13419419,140.17,140.14,3.81]
[1764123222441,0.68,140.17,140.14,10.94561729]
[1764123222745,0.68,140.17,140.14,13.41096202]
[1764123226329,24.12308136,140.17,140.12,9.47994492]
[1764123226545,24.12308136,140.17,140.1,22.22290636]
[1764123226546,2.46534473,140.16,140.1,22.22290636]
[1764123226850,3.14534473,140.16,140.1,22.22290636]
[1764123227020,0.68,140.15,140.1,22.22290636]
[1764123227221,0.68,140.15,140.1,21.55290636]
[1764123227437,7.815385,140.15,140.11,10.27249414]
[1764123228052,0.68,140.14,140.11,10.27249414]
[1764123228655,2.46534473,140.13,140.07,3.13534473]
[1764123228947,2.46534473,140.13,140.06,8.80994492]
[1764123228948,2.46534473,140.12,140.06,3.13534473]
[1764123229153,18.77420873,140.11,140.05,5.60534473]
[1764123229330,2.46534473,140.1,140.05,3.81]
[1764123229652,3.14534473,140.1,140.05,3.81]
[1764123229851,0.68,140.09,140.05,3.81]
[1764123230064,0.68,140.09,140.05,6.27534473]
[1764123230241,0.68,140.09,140.06,0.67]
[1764123232466,18.77420873,140.11,140.07,2.46534473]
[1764123232467,16.308864,140.11,140.07,2.46534473]
[1764123232637,0.68,140.12,140.08,3.13534473]
[1764123233544,0.68,140.12,140.08,10.27369038]
[1764123234544,0.68,140.12,140.09,3.15534473]
[1764123234744,7.85656402,140.13,140.09,3.15534473]
[1764123235262,7.85656402,140.13,140.09,2.46534473]
[1764123235458,7.85656402,140.13,140.1,0.69]
[1764123235640,7.13656402,140.13,140.09,9.60339514]
[1764123235956,0.72,140.13,140.1,0.69]
[1764123238261,0.72,140.13,140.09,9.60339514]
[1764123238467,0.72,140.13,140.09,10.29339514]
[1764123239471,0.72,140.13,140.09,9.60339514]
[1764123239667,0.72,140.13,140.09,10.29339514]
[1764123239965,0.72,140.13,140.09,9.60339514]
[1764123240273,0.72,140.13,140.1,0.69]
[1764123240465,0.72,140.13,140.09,10.29339514]
[1764123242573,0.72,140.13,140.09,7.13805041]
[1764123242864,0.72,140.13,140.09,10.26339514]
[1764123243072,0.72,140.13,140.1,0.66]
[1764123244360,7.85630165,140.13,140.1,0.66]
[1764123244861,7.13630165,140.13,140.1,0.66]
[1764123245070,0.71,140.12,140.1,0.66]
[1764123245260,0.71,140.12,140.09,11.65495896]
[1764123245459,0.71,140.12,140.09,10.99495896]
[1764123245650,0.71,140.12,140.09,11.65495896]
[1764123246154,0.71,140.12,140.1,0.66]
[1764123246964,7.84675761,140.12,140.08,4.51690855]
[1764123247167,7.84675761,140.12,140.08,0.66]
[1764123247382,0.71,140.11,140.08,0.66]
[1764123247558,0.71,140.11,140.07,7.65690855]
[1764123247760,0.71,140.11,140.07,0.66]
[1764123247953,4.56690855,140.11,140.07,0.66]
[1764123248284,4.56690855,140.11,140.06,3.14]
[1764123248572,0.71,140.1,140.06,3.8]
[1764123248766,7.84814299,140.1,140.06,10.93979599]
[1764123250054,0.71,140.09,140.06,10.93979599]
[1764123250366,0.71,140.09,140.06,11.65670454]
[1764123251674,0.71,140.09,140.06,0.66]
[1764123252471,0.71,140.09,140.05,10.28010673]
[1764123252669,0.71,140.09,140.06,0.66]
[1764123252969,0.71,140.09,140.05,14.79701528]
[1764123253558,7.84835488,140.09,140.04,7.09690855]
[1764123253772,11.70526343,140.09,140.04,3.24]
[1764123253956,0.71,140.08,140.04,3.24]
[1764123254157,0.71,140.08,140.04,3.9]
[1764123254759,7.84920765,140.08,140.04,3.9]
[1764123255360,7.84920765,140.08,140.04,3.24]
[1764123255361,0.71,140.07,140.04,3.24]
[1764123256476,0.71,140.07,140.04,3.9]
[1764123256780,7.84941742,140.07,140.04,3.9]
[1764123257278,0.71,140.06,140.04,3.9]
[1764123257575,0.71,140.06,140.04,3.24]
[1764123258274,0.71,140.06,140.04,3.9]
[1764123259071,7.84892425,140.08,140.05,0.66]
[1764123259672,7.13892425,140.08,140.05,0.66]
[1764123259978,0.71,140.07,140.05,0.66]
[1764123261266,7.84935117,140.07,140.04,0.1]
[1764123261576,7.84935117,140.07,140.04,3.95690855]
[1764123261752,0.71,140.06,140.04,3.95690855]
[1764123261951,0.71,140.06,140.04,11.09768018]
[1764123262178,0.71,140.08,140.04,11.75768018]
[1764123262379,0.71,140.1,140.06,3.85690855]
[1764123262575,17.018864,140.1,140.06,3.85690855]
[1764123262766,17.018864,140.1,140.07,0.66]
[1764123262961,17.018864,140.1,140.07,4.51690855]
[1764123263175,0.71,140.1,140.07,4.51690855]
[1764123263390,17.018864,140.09,140.04,0.1]
[1764123263584,17.018864,140.09,140.04,3.95690855]
[1764123263892,0.71,140.08,140.04,4.66690855]
[1764123264058,0.71,140.08,140.04,0.81]
[1764123264254,0.71,140.08,140.04,7.95073957]
[1764123265366,7.84910907,140.08,140.04,11.80764812]
[1764123265789,0.71,140.08,140.05,4.56690855]
[1764123266085,23.44730497,140.09,140.06,4.56690855]
[1764123266261,24.15730497,140.09,140.06,4.56690855]
[1764123266567,24.15730497,140.09,140.06,0.71]
[1764123269276,17.018864,140.09,140.06,11.70644729]
[1764123269473,0.71,140.1,140.06,11.70644729]
[1764123269675,0.71,140.1,140.07,0.71]
[1764123270264,0.71,140.1,140.06,11.70644729]
[1764123270931,7.84819668,140.1,140.06,0.71]
[1764123271263,0.71,140.09,140.06,7.84972521]
[1764123273884,7.84736977,140.11,140.07,4.56690855]
[1764123274387,0.71,140.1,140.08,0.71]
[1764123277681,7.84726828,140.11,140.08,0.71]
[1764123277883,0.71,140.1,140.08,0.71]
[1764123278090,7.84621545,140.14,140.08,7.84871555]
[1764123278282,7.84621545,140.14,140.09,7.70690855]
[1764123278493,24.15507945,140.14,140.09,7.70690855]
[1764123278798,0.71,140.13,140.1,0.71]
[1764123279004,0.71,140.13,140.1,4.56690855]
[1764123279496,16.308864,140.14,140.11,4.56690855]
[1764123279688,7.84539194,140.15,140.11,4.56690855]
[1764123279888,7.84539194,140.15,140.12,0.71]
[1764123280582,0.71,140.15,140.12,7.8466876]
[1764123281897,7.84530912,140.15,140.1,19.79720479]
[1764123282199,7.13530912,140.15,140.11,3.85690855]
[1764123282398,0.71,140.14,140.11,4.56690855]
[1764123283588,0.71,140.14,140.12,0.71]
[1764123284802,7.84530912,140.15,140.12,0.71]
[1764123287811,0.71,140.14,140.11,7.13690708]
[1764123287991,0.71,140.14,140.11,0.71]
[1764123289113,7.84580571,140.14,140.11,0.71]
[1764123289791,7.84580571,140.14,140.11,4.56690855]
[1764123290394,0.71,140.13,140.11,3.85690855]
[1764123290599,0.71,140.13,140.1,6.99690855]
[1764123290801,0.71,140.13,140.1,7.70690855]
[1764123291007,0.71,140.13,140.1,3.85]
[1764123291714,0.71,140.13,140.09,11.70496426]
[1764123292411,7.84647546,140.13,140.09,11.70496426]
[1764123292589,0.71,140.12,140.09,11.70496426]
[1764123293594,0.71,140.12,140.09,4.56690855]
[1764123295095,0.71,140.12,140.1,0.68]
[1764123295311,0.71,140.12,140.09,7.81822721]
[1764123295502,0.71,140.12,140.09,11.67513576]
[1764123295993,0.71,140.12,140.08,11.94994492]
[1764123295994,7.84676719,140.12,140.08,14.13564548]
[1764123296405,7.84676719,140.12,140.09,0.68]
[1764123297017,7.84676719,140.12,140.09,4.53690855]
[1764123297802,0.71,140.12,140.09,4.53690855]
[1764123298003,7.84675622,140.12,140.09,4.53690855]
[1764123300425,7.84675622,140.12,140.09,0.68]
[1764123300717,16.308864,140.1,140.06,3.85690855]
[1764123300941,16.308864,140.1,140.06,3.14]
[1764123301122,0.69,140.09,140.06,3.14]
[1764123301302,0.69,140.09,140.06,3.82]
[1764123302124,7.82837395,140.09,140.06,3.82]
[1764123302327,0.69,140.09,140.06,3.82]
[1764123302509,7.82845872,140.09,140.06,3.82]
[1764123302917,0.69,140.09,140.06,3.82]
[1764123303116,7.828327,140.09,140.06,7.67690855]
[1764123305518,7.798789,140.08,140.04,0.1]
[1764123305724,7.798789,140.08,140.04,7.09690855]
[1764123305917,0.66,140.07,140.04,3.92]
[1764123309936,0.66,140.07,140.04,11.06062497]
[1764123310340,0.66,140.07,140.04,13.531145]
[1764123310818,0.66,140.08,140.05,0.68]
[1764123311238,17.9539995,140.09,140.05,10.29077746]
[1764123311431,0.66,140.1,140.06,2.47052003]
[1764123311620,0.66,140.1,140.06,3.15052003]
[1764123311819,7.13754514,140.11,140.07,6.29052003]
[1764123312020,7.79688359,140.12,140.07,6.29052003]
[1764123312315,0.66,140.11,140.08,3.15052003]
[1764123312519,7.13688359,140.12,140.08,3.15052003]
[1764123312743,7.79688359,140.12,140.09,0.68]
[1764123313327,0.66,140.11,140.08,9.60911201]
[1764123313522,0.66,140.11,140.09,0.68]
[1764123313724,0.66,140.1,140.07,5.61052003]
[1764123313924,0.66,140.1,140.08,0.68]
[1764123314138,0.66,140.11,140.08,0.68]
[1764123314316,0.66,140.1,140.08,0.68]
[1764123314734,0.66,140.11,140.08,0.68]
[1764123315982,23.44523712,140.13,140.08,10.28898935]
[1764123316118,0.66,140.12,140.08,10.28898935]
[1764123316632,0.66,140.12,140.08,7.81846932]
[1764123317641,7.79678336,140.12,140.08,7.81846932]
[1764123317841,0.66,140.11,140.08,7.81846932]
[1764123319946,16.968864,140.13,140.09,3.15052003]
[1764123320127,0.66,140.13,140.09,3.15052003]
[1764123320443,0.66,140.12,140.08,9.60898935]
[1764123320634,0.66,140.12,140.08,10.28898935]
[1764123321231,0.66,140.12,140.09,0.68]
[1764123321753,7.79685893,140.12,140.09,0.68]
[1764123324743,7.79685893,140.12,140.09,7.8182587]
[1764123326257,0.66,140.12,140.09,7.8182587]
[1764123327153,7.79674826,140.12,140.07,3.14]
[1764123327337,10.26726829,140.12,140.07,10.99908317]
[1764123327538,0.72,140.11,140.08,0.72]
[1764123327734,0.72,140.11,140.07,3.14]
[1764123327943,18.77938403,140.09,140.03,13.47177088]
[1764123328248,18.77938403,140.09,140.04,7.2407]
[1764123328555,0.72,140.08,140.04,10.43122003]
[1764123328733,25.93880892,140.09,140.06,7.13979722]
[1764123328933,17.028864,140.08,140.05,10.33064729]
[1764123329130,24.16726717,140.09,140.06,0.72]
[1764123329336,7.13979722,140.1,140.06,3.19052003]
[1764123329554,0.72,140.09,140.06,3.19052003]
[1764123329754,0.72,140.09,140.06,0.72]
[1764123330267,0.72,140.09,140.05,7.14012726]
[1764123330438,3.19052003,140.09,140.04,16.05055004]
[1764123330760,2.47052003,140.06,140.04,0.1]
[1764123330979,7.14030703,140.05,140.04,0.1]
[1764123331262,7.86030703,140.05,140.04,0.1]
[1764123332354,0.72,140.05,140.04,0.1]
[1764123337556,27.41090579,140.07,140.04,0.1]
[1764123337865,0.72,140.06,140.04,0.1]
[1764123354986,0.72,140.06,140.04,0.81]
[1764123355283,7.86129099,140.08,140.05,2.47052003]
[1764123355468,16.978864,140.09,140.05,2.47052003]
[1764123355670,16.978864,140.09,140.06,0.71]
[1764123356058,24.11720823,140.09,140.06,0.71]
[1764123356582,0.67,140.08,140.05,7.85030703]
[1764123358770,7.80879248,140.08,140.04,7.2406928]
[1764123359180,0.67,140.07,140.04,7.2406928]
[1764123359384,0.67,140.07,140.04,10.3806928]
[1764123359965,0.67,140.07,140.04,7.2406928]
[1764123362576,16.308864,140.09,140.06,2.47052003]
[1764123362889,16.308864,140.09,140.06,5.61052003]
[1764123362890,0.66,140.08,140.06,5.61052003]
[1764123363872,0.66,140.08,140.06,3.14]
[1764123364268,0.66,140.08,140.06,5.61052003]
[1764123364495,0.66,140.08,140.06,2.47052003]
[1764123364669,0.66,140.08,140.06,12.75025433]
[1764123365384,0.66,140.08,140.06,10.2797343]
[1764123365571,0.66,140.1,140.07,2.47052003]
[1764123365781,0.66,140.1,140.09,2.47052003]
[1764123366691,0.66,140.1,140.09,3.8570867]
[1764123367074,0.66,140.1,140.09,10.99535495]
[1764123371194,0.66,140.1,140.09,14.13535495]
[1764123371575,0.66,140.1,140.09,10.27826825]
[1764123379606,0.66,140.1,140.09,14.13535495]
[1764123381803,110.13643611,140.13,140.09,14.13535495]
[1764123382008,0.66,140.11,140.09,14.13535495]
[1764123383223,0.66,140.11,140.1,3.8570867]
[1764123383528,103.0,140.13,140.1,3.8570867]
[1764123384009,7.13484436,140.16,140.11,3.8570867]
[1764123384206,17.84634411,140.18,140.15,3.8570867]
[1764123384413,103.0,140.19,140.16,3.8570867]
[1764123384590,0.67,140.2,140.18,3.8570867]
[1764123384920,103.0,140.24,140.19,4.5670867]
[1764123385128,0.1,140.29,140.2,8.80994492]
[1764123385129,8.80994492,140.23,140.2,8.80994492]
[1764123385415,0.77,140.25,140.22,3.8570867]
[1764123385786,0.77,140.25,140.23,3.8570867]
[1764123386206,0.77,140.25,140.22,3.8570867]
[1764123387089,0.77,140.25,140.23,3.8570867]
[1764123387281,0.77,140.25,140.23,10.98773037]
[1764123387487,0.77,140.25,140.23,3.8570867]
[1764123388192,0.77,140.25,140.23,10.98814035]
[1764123388413,0.77,140.25,140.23,3.8570867]
[1764123388999,0.77,140.25,140.22,19.79865112]
[1764123389197,0.77,140.25,140.22,20.50865112]
[1764123389802,0.77,140.25,140.22,3.8570867]
[1764123389999,0.77,140.25,140.22,10.98872219]
[1764123390907,16.308864,140.24,140.18,21.43086759]
[1764123391120,3.8570867,140.21,140.16,8.80994492]
[1764123391304,10.9898073,140.2,140.15,14.13202116]
[1764123391503,0.67,140.19,140.15,14.13202116]
[1764123392016,0.67,140.19,140.15,14.84202116]
[1764123392306,0.67,140.19,140.15,14.13202116]
[1764123393289,0.67,140.19,140.16,3.8570867]
[1764123393492,0.67,140.21,140.18,3.8570867]
[1764123393814,41.59681829,140.23,140.18,6.9970867]
[1764123393815,0.67,140.2,140.18,6.9970867]
[1764123394228,36.10721268,140.23,140.18,6.9970867]
[1764123394407,0.67,140.2,140.18,6.9970867]
[1764123394805,0.67,140.2,140.18,3.14]
[1764123398603,0.67,140.2,140.18,10.27353005]
[1764123400513,0.67,140.2,140.18,3.14]
[1764123400916,0.67,140.2,140.18,10.27361399]
[1764123406035,0.1,140.25,140.2,8.80994492]
[1764123406218,0.67,140.24,140.22,3.8570867]
[1764123406607,0.67,140.24,140.21,7.7070867]
[1764123407009,0.67,140.24,140.22,3.8570867]
[1764123408817,0.67,140.24,140.21,14.83893301]
[1764123410442,0.67,140.24,140.21,6.9970867]
[1764123410646,3.8570867,140.23,140.19,3.14]
[1764123410933,7.80077273,140.24,140.19,3.14]
[1764123411135,0.67,140.23,140.19,6.9970867]
[1764123411438,0.67,140.23,140.2,3.8570867]
[1764123411837,7.90030116,140.25,140.21,4.5670867]
[1764123412034,0.67,140.24,140.21,4.5670867]
[1764123412541,0.1,140.25,140.22,14.83873696]